[Event "GER-ch Youth U10W 2020"]
[Site "Willingen"]
[Date "2020.10.31"]
[Round "7.19"]
[White "Mo, Keyou"]
[Black "Peglau, Lorena"]
[Result "0-1"]
[ECO "B13"]
[WhiteElo "950"]
[BlackElo "1061"]
[Annotator "NA RC"]
[PlyCount "62"]
[EventDate "2020.10.27"]
[EventType "swiss"]
[EventRounds "7"]
[EventCountry "GER"]
[SourceTitle "playchess.com"]
[Source "ChessBase"]
[SourceQuality "1"]
[TimeControl "40/4500+30:900+30"]

1. e4 {[%emt 0:00:00]} c6 {[%emt 0:00:00]} 2. d4 {[%emt 0:00:00]} d5 {[%emt 0:00:00]} 3. exd5 {[%emt 0:00:00]} cxd5 {[%emt 0:00:05]} 4. Nf3 {[%emt 0:00:00]} Nc6 {[%emt 0:00:17]} 5. c4 {[%emt 0:00:09]} Nf6 {[%emt 0:00:20]} 6. Nc3 {[%emt 0:00:09]} Bg4 {[%emt 0:00:26]} 7. Be3 {[%emt 0:00:15]} e6 {[%emt 0:00:27]} 8. h3 {[%emt 0:00:41]} Bh5 {[%emt 0:00:29]} 9. Be2 {[%emt 0:00:27]} Qb6 {[%emt 0:00:37]} 10. b3 {[%emt 0:02:01]} dxc4 {[%emt 0:00:37]} 11. bxc4 {[%emt 0:00:57]} Bb4 {[%emt 0:00:27]} 12. Qd2 {[%emt 0:02:18]} Ne4 {[%emt 0:00:29]} 13. Qc2 {[%emt 0:01:51]} Bxc3+ {[%emt 0:00:25]} 14. Bd2 {[%emt 0:00:17]} Bxa1 {[%emt 0:00:12]} 15. O-O {[%emt 0:02:20]} Bxd4 {[%emt 0:00:23]} 16. Qxe4 {[%emt 0:00:26]} Bf6 {[%emt 0:01:26]} 17. Rb1 {[%emt 0:02:32]} Qc7 {[%emt 0:00:41]} 18. Bf4 {[%emt 0:00:47]} Bg6 {[%emt 0:00:42]} 19. Bxc7 {[%emt 0:02:11]} Bxe4 {[%emt 0:00:08]} 20. Rxb7 {[%emt 0:00:13]} O-O {[%emt 0:00:51]} 21. Bd6 {[%emt 0:01:37]} Rfd8 {[%emt 0:00:21]} 22. Bc7 {[%emt 0:00:26]} Rd7 {[%emt 0:00:41]} 23. h4 Rc8 {[%emt 0:00:30]} 24. Ng5 {[%emt 0:09:33]} Rdxc7 {[%emt 0:00:32]} 25. Rxc7 {[%emt 0:00:12]} Rxc7 {[%emt 0:00:30]} 26. Nxe4 {[%emt 0:00:30]} Be5 {[%emt 0:00:30]} 27. g3 {[%emt 0:00:30]} Nd4 {[%emt 0:00:30]} 28. Bg4 {[%emt 0:05:10]} Rxc4 {[%emt 0:00:23]} 29. Nd2 {[%emt 0:00:44]} Rc2 {[%emt 0:00:20]} 30. Nb3 Rc1+ {[%emt 0:00:30]} 31. Kg2 {[%emt 0:03:07]} Rc2 {[%emt 0:00:00]} 0-1

[Event "GER-ch Youth U10W 2020"]
[Site "Willingen"]
[Date "2020.10.31"]
[Round "7.21"]
[White "Margaryan, Mari"]
[Black "Mehner, Clara"]
[Result "0-1"]
[ECO "C00"]
[WhiteElo "690"]
[BlackElo "1244"]
[Annotator "NA RC"]
[PlyCount "68"]
[EventDate "2020.10.27"]
[EventType "swiss"]
[EventRounds "7"]
[EventCountry "GER"]
[SourceTitle "playchess.com"]
[Source "ChessBase"]
[SourceQuality "1"]
[TimeControl "40/4500+30:900+30"]

1. e4 {[%emt 0:00:00]} e6 {[%emt 0:00:00]} 2. Nf3 {[%emt 0:00:00]} d5 {[%emt 0:00:00]} 3. d3 {[%emt 0:00:00]} c5 {[%emt 0:00:28]} 4. Bg5 {[%emt 0:00:08]} Be7 {[%emt 0:00:33]} 5. Bxe7 {[%emt 0:00:41]} Nxe7 {[%emt 0:00:51]} 6. Nc3 {[%emt 0:00:23]} Nbc6 {[%emt 0:02:10]} 7. Be2 {[%emt 0:01:07]} O-O {[%emt 0:03:26]} 8. Ng5 {[%emt 0:00:37]} Ng6 {[%emt 0:07:03]} 9. Bh5 {[%emt 0:00:27]} Qxg5 {[%emt 0:00:37]} 10. g4 {[%emt 0:00:43]} Nge5 {[%emt 0:03:32]} 11. h4 {[%emt 0:00:32]} Qe7 {[%emt 0:01:43]} 12. Qe2 {[%emt 0:00:34]} g6 {[%emt 0:01:44]} 13. f4 {[%emt 0:01:29]} gxh5 {[%emt 0:03:09]} 14. fxe5 Nxe5 15. gxh5 {[%emt 0:02:16]} Kh8 {[%emt 0:03:50]} 16. Rg1 {[%emt 0:00:22]} Qxh4+ {[%emt 0:01:18]} 17. Kf1 {[%emt 0:00:42]} Qf4+ {[%emt 0:03:13]} 18. Ke1 {[%emt 0:00:29]} Nf3+ {[%emt 0:00:55]} 19. Kf2 {[%emt 0:00:32]} Nd4+ {[%emt 0:00:11]} 20. Kg2 {[%emt 0:00:59]} Nxe2 {[%emt 0:00:23]} 21. Nxe2 {[%emt 0:00:38]} Qg4+ {[%emt 0:00:45]} 22. Kf2 {[%emt 0:00:24]} Qxh5 {[%emt 0:00:21]} 23. Nf4 {[%emt 0:00:34]} Qh4+ {[%emt 0:00:48]} 24. Rg3 {[%emt 0:00:20]} Qxf4+ {[%emt 0:00:19]} 25. Rf3 {[%emt 0:00:16]} Qe5 {[%emt 0:00:45]} 26. Re3 {[%emt 0:00:31]} Qxb2 {[%emt 0:00:32]} 27. Re2 {[%emt 0:00:17]} Qxa1 {[%emt 0:00:17]} 28. Re1 {[%emt 0:00:19]} Qxa2 {[%emt 0:00:31]} 29. Re2 {[%emt 0:00:21]} Bd7 {[%emt 0:01:17]} 30. Rd2 {[%emt 0:00:16]} Rg8 {[%emt 0:01:16]} 31. Ke2 {[%emt 0:00:34]} Rg2+ {[%emt 0:00:14]} 32. Kf1 {[%emt 0:00:19]} Rxd2 {[%emt 0:00:15]} 33. Ke1 {[%emt 0:00:18]} Qxc2 {[%emt 0:00:34]} 34. d4 {[%emt 0:00:29]} Qc1# 0-1